bitfinex-derivatives/quotes_SOLF0:USTF0_20250914
["timestamp","ask_amount","ask_price","bid_price","bid_amount"]
[1757821176249,1.16,248.53,248.37,6.85]
[1757821177251,1.16,248.53,248.32,27.52]
[1757821177252,1.2825368,248.58,248.4,6.8]
[1757821177552,2.88278797,248.57,248.4,6.8]
[1757821177851,1.16,248.55,248.4,6.8]
[1757821178048,2.88278797,248.54,248.4,6.8]
[1757821178249,1.16,248.55,248.4,6.8]
[1757821178451,2.88296114,248.54,248.4,6.8]
[1757821178650,1.16,248.55,248.4,6.8]
[1757821178952,2.88296448,248.54,248.4,6.8]
[1757821179152,1.16,248.55,248.4,6.8]
[1757821179953,1.2825368,248.54,248.4,6.8]
[1757821180151,1.16,248.53,248.4,6.8]
[1757821180352,2.4425368,248.53,248.4,6.8]
[1757821185462,1.16,248.52,248.4,6.8]
[1757821185663,1.16,248.48,248.4,6.8]
[1757821188159,1.2825368,248.49,248.4,6.8]
[1757821188362,1.16,248.48,248.4,6.8]
[1757821189273,1.16,248.4,248.36,6.8]
[1757821189564,1.16,248.4,248.3,6.8]
[1757821193972,1.17,248.4,248.3,6.8]
[1757821197468,1.2825368,248.37,248.3,6.8]
[1757821197673,1.17,248.36,248.3,6.8]
[1757821200880,1.17,248.36,248.25,6.83]
[1757821200881,1.18,248.36,248.25,6.83]
[1757821202578,1.2825368,248.37,248.25,6.83]
[1757821203281,1.18,248.36,248.25,6.83]
[1757821204482,1.2825368,248.33,248.19,6.83]
[1757821204679,1.18,248.32,248.19,6.83]
[1757821205482,1.18,248.32,248.19,18.63603916]
[1757821205680,1.18,248.32,248.2,6.83]
[1757821208883,1.18,248.27,248.16,6.83]
[1757821210588,1.2825368,248.28,248.16,6.83]
[1757821210782,1.18,248.27,248.16,6.83]
[1757821212384,1.2825368,248.33,248.16,6.83]
[1757821212591,2.4625368,248.33,248.16,6.83]
[1757821214283,1.18,248.32,248.16,6.83]
[1757821217191,1.18,248.33,248.16,6.83]
[1757821218290,1.2825368,248.34,248.16,6.83]
[1757821218489,1.18,248.29,248.16,6.83]
[1757821218789,1.2825368,248.3,248.16,6.83]
[1757821218997,1.18,248.29,248.16,6.83]
[1757821219192,1.2825368,248.3,248.16,6.83]
[1757821219387,1.18,248.25,248.16,6.83]
[1757821226901,1.2825368,248.22,248.06,6.83]
[1757821227102,1.18,248.21,248.06,6.83]
[1757821228301,1.19,248.21,248.06,6.83]
[1757821228497,2.4725368,248.21,248.06,6.83]
[1757821229302,5.33,248.2,248.06,6.83]
[1757821230506,1.19,248.2,248.06,6.83]
[1757821233402,80.06,248.22,248.06,6.83]
[1757821234004,80.06,248.22,248.06,8.1125368]
[1757821234404,80.06,248.22,248.04,12.00054389]
[1757821234405,0.82261959,248.21,248.09,0.82261959]
[1757821234710,0.82261959,248.21,248.1,6.34]
[1757821237803,2.01261959,248.21,248.1,6.34]
[1757821240710,0.82261959,248.18,248.1,6.34]
[1757821242313,0.82261959,248.21,248.1,7.16261959]
[1757821245113,1.19,248.25,248.1,7.16261959]
[1757821245308,0.82261959,248.23,248.1,7.16261959]
[1757821246711,1.19,248.25,248.1,7.16261959]
[1757821246907,2.01261959,248.25,248.1,7.16261959]
[1757821248919,0.82261959,248.22,248.1,7.16261959]
[1757821251920,1.19,248.1,248.0,6.53]
[1757821252225,0.82261959,248.06,248.0,6.53]
[1757821253025,0.82261959,248.07,248.0,6.53]
[1757821256330,1.19,248.1,248.0,6.53]
[1757821256331,0.82261959,248.1,248.0,6.53]
[1757821256825,0.82261959,248.11,248.0,6.53]
[1757821257416,1.19,248.15,248.0,6.53]
[1757821257621,0.82261959,248.09,248.0,6.53]
[1757821258828,1.19,248.15,248.0,6.53]
[1757821259029,0.82261959,248.13,248.0,6.53]
[1757821259625,0.82261959,248.07,248.0,6.53]
[1757821261229,1.19,248.12,248.0,6.53]
[1757821261429,0.82261959,248.11,248.0,6.53]
[1757821264235,0.82261959,248.14,248.0,6.53]
[1757821264425,0.82261959,248.14,248.03,6.99]
[1757821266137,1.19,248.2,248.06,6.99]
[1757821266336,0.82261959,248.18,248.06,6.99]
[1757821270437,1.19,248.2,248.09,6.99]
[1757821271237,0.82261959,248.21,248.12,6.99]
[1757821271444,10.66,248.28,248.12,6.99]
[1757821271445,2.01261959,248.18,248.12,6.99]
[1757821275947,1.19,248.18,248.12,6.99]
[1757821276149,2.01261959,248.18,248.12,6.99]
[1757821278952,2.01261959,248.15,248.04,6.99]
[1757821279453,0.82261959,248.11,248.04,6.99]
[1757821286357,0.82261959,248.13,248.04,6.99]
[1757821286557,0.82261959,248.15,248.04,6.99]
[1757821291461,0.82261959,248.12,248.04,6.99]
[1757821294360,0.82261959,248.16,248.04,6.99]
[1757821294559,0.82261959,248.18,248.06,0.82261959]
[1757821294862,0.82261959,248.18,248.07,6.89]
[1757821296366,1.19,248.19,248.07,6.89]
[1757821297866,2.88297584,248.18,248.07,6.89]
[1757821298062,1.19,248.19,248.07,6.89]
[1757821298257,2.88310002,248.18,248.07,6.89]
[1757821298462,1.19,248.19,248.07,6.89]
[1757821298666,2.8834172,248.18,248.07,6.89]
[1757821298971,1.19,248.19,248.07,6.89]
[1757821299168,2.88371405,248.18,248.07,6.89]
[1757821299372,1.19,248.19,248.07,6.89]
[1757821299569,2.88445099,248.18,248.07,6.89]
[1757821299769,1.19,248.19,248.07,6.89]
[1757821299969,2.88463658,248.18,248.07,6.89]
[1757821300168,1.19,248.19,248.07,6.89]
[1757821300371,2.88469129,248.18,248.07,6.89]
[1757821300667,1.28571651,248.22,248.07,6.89]
[1757821300869,2.88499582,248.21,248.07,6.89]
[1757821301065,2.88499582,248.2,248.07,6.89]
[1757821301270,2.88499582,248.19,248.07,6.89]
[1757821301573,1.28571651,248.22,248.07,6.89]
[1757821301774,2.88529083,248.21,248.07,6.89]
[1757821301975,2.88529083,248.2,248.07,6.89]
[1757821302174,2.88529083,248.19,248.07,6.89]
[1757821302370,1.28571651,248.22,248.07,6.89]
[1757821302577,2.88568441,248.21,248.07,6.89]
[1757821302776,2.88568441,248.2,248.07,6.89]
[1757821303077,2.88568441,248.19,248.07,6.89]
[1757821303277,1.28571651,248.22,248.07,6.89]
[1757821303571,2.88604696,248.21,248.07,6.89]
[1757821303776,2.88604696,248.2,248.07,6.89]
[1757821303976,1.28571651,248.22,248.07,6.89]
[1757821304277,2.88615337,248.21,248.07,6.89]
[1757821304478,2.88615337,248.2,248.07,6.89]
[1757821304678,1.28571651,248.22,248.07,6.89]
[1757821304877,2.88608466,248.21,248.07,6.89]
[1757821305078,2.88608466,248.2,248.07,6.89]
[1757821305279,1.28571651,248.22,248.07,6.89]
[1757821305477,2.8857128,248.21,248.07,6.89]
[1757821305778,2.8857128,248.2,248.07,6.89]
[1757821306077,1.28571651,248.22,248.07,6.89]
[1757821306274,2.88551458,248.21,248.07,6.89]
[1757821306479,2.8860397,248.2,248.07,6.89]
[1757821306682,1.28571651,248.22,248.07,6.89]
[1757821306880,2.88844548,248.21,248.07,6.89]
[1757821307079,1.28571651,248.22,248.07,6.89]
[1757821307080,2.88844548,248.2,248.07,6.89]
[1757821307386,1.28571651,248.22,248.07,6.89]
[1757821307682,2.88817139,248.21,248.07,6.89]
[1757821307980,1.28571651,248.22,248.07,6.89]
[1757821308180,1.19,248.21,248.07,6.89]
[1757821311182,1.28571651,248.22,248.07,6.89]
[1757821311376,4.08040621,248.21,248.07,6.89]
[1757821311679,1.19,248.21,248.07,6.89]
[1757821318687,1.28571651,248.22,248.07,6.89]
[1757821318984,1.18,248.2,248.07,6.89]
[1757821320389,1.28571651,248.22,248.07,6.89]
[1757821320588,2.89111763,248.21,248.07,6.89]
[1757821320787,1.28571651,248.22,248.07,6.89]
[1757821321881,1.18,248.24,248.07,8.17571651]
[1757821322088,2.89119755,248.23,248.07,8.17571651]
[1757821322289,1.18,248.24,248.07,8.17571651]
[1757821323292,1.18,248.24,248.08,6.31]
[1757821323591,1.28571651,248.22,248.08,6.31]
[1757821325690,1.18,248.24,248.08,6.31]
[1757821326691,1.18,248.21,248.08,6.31]
[1757821326884,1.28571651,248.18,248.08,6.31]
[1757821327086,2.46571651,248.18,248.08,6.31]
[1757821328295,1.28571651,248.18,248.08,6.31]
[1757821328489,1.28571651,248.14,248.08,6.31]
[1757821328986,2.46571651,248.18,248.08,6.31]
[1757821331399,4.0757496,248.17,248.08,6.31]
[1757821331591,1.18,248.17,248.08,6.31]
[1757821332196,2.89505284,248.16,248.08,6.31]
[1757821332393,1.18,248.17,248.08,6.31]
[1757821332692,2.89511089,248.16,248.08,6.31]
[1757821332995,1.18,248.17,248.08,6.31]
[1757821333195,1.28571651,248.14,248.08,6.31]
[1757821338504,1.18,248.15,248.08,6.31]
[1757821339503,1.28571651,248.18,248.08,6.31]
[1757821339804,4.06928661,248.17,248.08,6.31]
[1757821340003,2.88928661,248.16,248.08,6.31]
[1757821340198,1.18,248.17,248.08,6.31]
[1757821340396,2.88972567,248.16,248.08,6.31]
[1757821340605,1.28571651,248.14,248.08,6.31]
[1757821340805,1.28571651,248.14,247.99,6.31]
[1757821341402,1.18,248.13,247.99,6.31]
[1757821344406,1.18,248.17,247.99,6.31]
[1757821344606,2.88827957,248.16,248.0,6.31]
[1757821344807,4.06827957,248.15,248.0,6.31]
[1757821345006,1.28571651,248.13,248.0,6.31]
[1757821348204,1.19,248.12,248.0,6.31]
[1757821351906,1.28571651,248.13,248.0,6.31]
[1757821352811,1.19,248.16,248.0,6.31]
[1757821353013,2.88525473,248.15,248.0,6.31]
[1757821353212,1.19,248.14,248.0,6.31]
[1757821358420,0.82320085,248.12,248.0,6.31]
[1757821364122,1.19,248.14,248.0,6.31]
[1757821364422,0.82320085,248.12,248.0,6.31]
[1757821367526,1.19,248.14,248.0,6.31]
[1757821367723,2.01320085,248.14,248.0,6.31]
[1757821370328,2.01320085,248.14,248.02,6.51]
[1757821370727,1.19,248.13,248.02,6.51]
[1757821371924,0.82320085,248.17,248.05,6.67]
[1757821372227,2.01320085,248.18,248.05,6.67]
[1757821375329,1.19,248.17,248.05,6.67]
[1757821375529,1.19,248.14,248.05,6.67]
[1757821376131,0.82320085,248.12,248.05,6.67]
[1757821376429,1.19,248.11,248.05,6.67]
[1757821377033,0.82320085,248.12,248.05,6.67]
[1757821379931,2.01320085,248.12,248.05,6.67]
[1757821386634,0.82320085,248.09,248.0,6.93]
[1757821394754,0.82320085,248.06,248.0,6.93]
[1757821395250,2.01320085,248.06,248.0,6.93]
[1757821395555,0.82320085,248.06,248.0,6.93]
[1757821395754,1.19,248.11,248.0,6.93]
[1757821395949,0.82320085,248.07,248.0,6.93]
[1757821396856,1.19,248.11,248.0,6.93]
[1757821397053,2.84807211,248.1,248.0,6.93]
[1757821397251,0.82320085,248.07,248.0,6.93]
[1757821399858,0.82320085,248.1,248.0,6.93]
[1757821404061,0.82320085,248.12,248.0,6.93]
[1757821405757,0.82320085,248.09,248.0,6.93]
[1757821405965,0.82320085,248.06,248.0,6.93]
[1757821406954,0.82320085,248.03,247.96,6.93]
[1757821407160,0.82320085,248.0,247.96,6.93]
[1757821407862,2.01320085,248.0,247.96,6.93]
[1757821408362,1.19,247.99,247.96,6.93]
[1757821409258,1.19,247.99,247.9,6.91]
[1757821410066,0.82320085,247.91,247.85,6.91]
[1757821410661,0.82320085,247.94,247.85,6.91]
[1757821412362,1.2,247.98,247.87,6.39]
[1757821412567,0.82320085,247.96,247.87,6.39]
[1757821413466,0.82320085,247.93,247.87,6.39]
[1757821416375,0.82320085,247.97,247.87,6.39]
[1757821416571,1.2,247.96,247.87,6.39]
[1757821419476,0.82320085,247.94,247.87,6.39]
[1757821420076,1.2,247.93,247.87,6.39]
[1757821421778,1.2,247.91,247.8,6.39]
[1757821429676,2.68,247.93,247.8,6.39]
[1757821429677,1.28828549,247.93,247.8,6.39]
[1757821431475,1.2,247.95,247.8,6.39]
[1757821436380,1.28828549,247.96,247.8,6.39]
[1757821436581,1.2,247.95,247.8,6.39]
[1757821436783,1.2,247.9,247.8,6.39]
[1757821441883,2.48828549,247.91,247.8,6.39]
[1757821442987,16.12828549,247.91,247.8,6.39]
[1757821443488,2.48828549,247.91,247.8,6.39]
[1757821445283,1.2,247.91,247.8,6.39]
[1757821445587,1.28828549,247.9,247.8,6.39]
[1757821445885,1.2,247.89,247.8,6.39]
[1757821446086,1.28828549,247.86,247.8,6.39]
[1757821447293,1.28828549,247.86,247.69,1.28828549]
[1757821447491,1.2,247.85,247.7,6.76]
[1757821447985,1.2,247.89,247.7,6.76]
[1757821448191,3.6,247.88,247.7,6.76]
[1757821448690,1.2,247.89,247.7,6.76]
[1757821449292,1.2,247.87,247.7,6.76]
[1757821452893,20.82,247.87,247.7,6.76]
[1757821454393,37.62,247.86,247.7,6.76]
[1757821455594,1.2,247.85,247.7,6.76]
[1757821462301,1.2,247.85,247.7,6.77804428]
[1757821462597,1.2,247.85,247.69,1.28828549]
[1757821462598,1.2,247.85,247.71,6.76]
[1757821462797,1.28828549,247.86,247.71,6.76]
[1757821463394,1.2,247.85,247.71,6.76]
[1757821463989,1.28828549,247.86,247.71,6.76]
[1757821464394,1.2,247.85,247.71,6.76]
[1757821465196,1.28828549,247.86,247.71,6.76]
[1757821465401,1.2,247.81,247.71,6.76]
[1757821466401,1.28828549,247.82,247.71,6.76]
[1757821466608,1.28828549,247.78,247.71,6.76]
[1757821467805,1.21,247.77,247.71,6.76]
[1757821472505,1.21,247.77,247.62,6.96]
[1757821474211,5.21,247.77,247.62,6.96]
[1757821476414,2.49828549,247.77,247.62,6.96]
[1757821479418,1.21,247.76,247.62,6.96]
[1757821480416,0.82578427,247.71,247.62,6.96]
[1757821482318,0.82578427,247.72,247.62,6.96]
[1757821484622,1.21,247.71,247.62,6.96]
[1757821484823,0.82578427,247.72,247.62,6.96]
[1757821485024,0.82578427,247.69,247.62,6.96]
[1757821492225,1.21,247.72,247.62,6.96]
[1757821492418,0.82578427,247.68,247.62,6.96]
[1757821493021,1.21,247.72,247.62,6.96]
[1757821493222,0.82578427,247.7,247.62,6.96]
[1757821497327,1.21,247.72,247.62,6.96]
[1757821497518,2.03578427,247.72,247.62,6.96]
[1757821499828,0.82578427,247.72,247.62,6.96]
[1757821500125,2.02578427,247.76,247.63,0.82578427]
[1757821500430,2.02578427,247.76,247.64,6.47]
[1757821504536,1.2,247.76,247.64,6.47]
[1757821504732,2.02578427,247.76,247.64,6.47]
[1757821504934,1.2,247.75,247.64,6.47]
[1757821505134,1.2,247.72,247.64,6.47]
[1757821508438,0.82578427,247.7,247.64,6.47]
[1757821509439,1.2,247.69,247.58,6.47]
[1757821509636,1.2,247.66,247.58,6.47]
[1757821515244,0.82578427,247.64,247.58,6.47]
[1757821516748,1.2,247.66,247.58,6.47]
[1757821517046,0.82578427,247.65,247.58,6.47]
[1757821519944,1.2,247.66,247.58,6.47]
[1757821520246,0.82578427,247.64,247.58,6.47]
[1757821522248,0.82578427,247.66,247.58,6.47]
[1757821522953,2.02578427,247.66,247.58,6.47]
[1757821527845,0.82578427,247.66,247.58,6.47]
[1757821532552,0.82578427,247.71,247.58,6.47]
[1757821532854,0.82578427,247.71,247.61,6.58]
[1757821534250,4.47029468,247.82,247.61,6.58]
[1757821534251,0.82578427,247.74,247.61,6.58]
[1757821534448,0.82578427,247.74,247.64,6.58]
[1757821539057,1.21,247.79,247.64,6.58]
[1757821539263,0.82578427,247.76,247.64,7.40578427]
[1757821540163,0.82578427,247.78,247.68,6.58]
[1757821540666,0.82578427,247.82,247.68,6.58]
[1757821541264,1.21,247.8,247.68,6.58]
[1757821541466,0.82578427,247.78,247.68,6.58]
[1757821541667,1.21,247.8,247.68,6.58]
[1757821541961,0.82578427,247.77,247.68,6.58]
[1757821542365,1.21,247.8,247.68,6.58]
[1757821542366,2.49992701,247.8,247.68,6.58]
[1757821542758,1.21,247.8,247.68,6.58]
[1757821543569,1.28992701,247.82,247.68,6.58]
[1757821544066,19.26,247.83,247.68,6.58]
[1757821545674,19.26,247.83,247.68,7.86992701]
[1757821545872,19.26,247.83,247.68,6.58]
[1757821546172,1.28992701,247.82,247.68,6.58]
[1757821548769,1.21,247.84,247.68,7.86992701]
[1757821548973,1.21,247.84,247.68,6.58]
[1757821549480,1.28992701,247.83,247.68,6.58]
[1757821550068,12.11,247.95,247.68,6.58]
[1757821550069,1.28992701,247.87,247.68,6.58]
[1757821551474,1.2,247.86,247.72,6.68]
[1757821551976,1.28992701,247.87,247.72,6.68]
[1757821552178,1.2,247.81,247.72,6.68]
[1757821553977,1.28992701,247.82,247.72,6.68]
[1757821556676,1.2,247.81,247.72,6.68]
[1757821567987,1.21,247.81,247.72,6.68]
[1757821569486,1.21,247.81,247.66,1.28992701]
[1757821569681,1.21,247.81,247.67,6.87]
[1757821569986,1.21,247.77,247.67,6.87]
[1757821570584,1.28992701,247.78,247.67,6.87]
[1757821571195,1.21,247.77,247.67,6.87]
[1757821572886,1.28992701,247.78,247.67,6.87]
[1757821573591,1.21,247.77,247.67,6.87]
[1757821576089,4.00992701,247.79,247.67,6.87]
[1757821576289,1.21,247.74,247.67,6.87]
[1757821578093,1.21,247.72,247.56,6.87]
[1757821579599,1.28992701,247.74,247.56,6.87]
[1757821580097,4.04608137,247.73,247.56,6.87]
[1757821580292,1.21,247.73,247.56,6.87]
[1757821580489,18.23,247.73,247.56,6.87]
[1757821580690,1.21,247.72,247.56,6.87]
[1757821580890,17.02,247.73,247.56,6.87]
[1757821581096,1.21,247.71,247.56,6.87]
[1757821583199,1.28992701,247.74,247.56,6.87]
[1757821583401,18.91195353,247.73,247.56,6.87]
[1757821583700,1.21,247.71,247.56,6.87]
[1757821586302,1.28992701,247.74,247.58,6.87]
[1757821587006,2.49992701,247.74,247.58,6.87]
[1757821587803,1.21,247.74,247.58,6.87]
[1757821590907,2.49992701,247.78,247.59,6.86]
[1757821594404,2.49992701,247.78,247.61,1.28992701]
[1757821594405,1.21,247.78,247.61,1.28992701]
[1757821594609,1.21,247.78,247.62,6.86]
[1757821595709,1.21,247.78,247.65,6.86]
[1757821596213,1.21,247.81,247.65,6.86]
[1757821597612,1.21,247.85,247.69,6.86]
[1757821599713,1.21,247.9,247.73,6.86]
[1757821601106,271.2,247.92,247.76,1.28992701]
[1757821601308,271.2,247.92,247.77,6.86]
[1757821602719,1.28992701,247.93,247.77,6.86]
[1757821604619,0.82466402,247.89,247.77,6.86]
[1757821606919,0.82466402,247.86,247.77,6.86]
[1757821609320,0.82466402,247.83,247.77,6.86]
[1757821612823,0.82466402,247.86,247.77,6.86]
[1757821613625,0.82466402,247.89,247.77,6.86]
[1757821615322,1.2,247.91,247.72,6.82]
[1757821615323,0.82466402,247.84,247.72,6.82]
[1757821615529,0.82466402,247.81,247.72,6.82]
[1757821616027,2.02466402,247.84,247.72,6.82]
[1757821619130,0.82466402,247.87,247.74,0.82466402]
[1757821619323,0.82466402,247.87,247.75,6.44]
[1757821620628,0.82466402,247.87,247.77,0.82466402]
[1757821620817,0.82466402,247.87,247.78,6.44]
[1757821625134,1.21,247.92,247.78,6.44]
[1757821625135,0.82466402,247.9,247.78,6.44]
[1757821629434,0.82466402,247.9,247.78,7.26466402]
[1757821629938,1.21,247.89,247.78,7.26466402]
[1757821630437,1.21,247.89,247.78,6.44]
[1757821630732,1.21,247.86,247.78,6.44]
[1757821632637,0.82466402,247.84,247.78,6.44]
[1757821634237,0.82466402,247.87,247.78,6.44]
[1757821637738,1.21,247.9,247.78,6.44]
[1757821637939,0.82466402,247.88,247.78,6.44]
[1757821645837,16.58029468,248.01,247.78,7.6027083]
[1757821646144,0.82466402,247.93,247.81,6.44]
[1757821646944,0.82466402,247.93,247.82,6.44]
[1757821658052,1.2,247.92,247.82,6.44]
[1757821665759,1.2,248.02,247.87,6.85]
[1757821665956,1.2,247.98,247.87,6.85]
[1757821666353,1.28827977,247.95,247.87,6.85]
[1757821666555,1.2,247.94,247.87,6.85]
[1757821674166,1.2,247.92,247.82,6.78]
[1757821674365,1.28827977,247.91,247.82,6.78]
[1757821674566,4.07866837,247.91,247.82,6.78]
[1757821674766,1.28827977,247.91,247.82,6.78]
[1757821675565,1.2,247.9,247.82,6.78]
[1757821677356,1.28827977,247.91,247.82,6.78]
[1757821677557,1.28827977,247.95,247.82,6.78]
[1757821678464,1.28827977,247.95,247.83,6.75]
[1757821679563,1.2,247.97,247.83,6.75]
[1757821679763,2.78981202,247.96,247.83,6.75]
[1757821679961,2.78981202,247.95,247.83,6.75]
[1757821680162,1.2,247.97,247.83,6.75]
[1757821680462,2.78981202,247.96,247.83,6.75]
[1757821680663,2.78981202,247.95,247.83,6.75]
[1757821680865,1.2,247.97,247.83,6.77804428]
[1757821681064,1.2,247.97,247.84,6.75]
[1757821681961,1.2,247.97,247.85,6.75]
[1757821682357,69.34,248.01,247.85,6.75]
[1757821682669,2.78776918,248.0,247.85,6.75]
[1757821682967,2.78776918,247.99,247.85,6.75]
[1757821683166,70.54,248.01,247.85,6.75]
[1757821683372,2.78696851,248.0,247.85,6.75]
[1757821683567,1.2,248.01,247.88,6.75]
[1757821684666,1.28827977,248.02,247.88,6.75]
[1757821684862,2.7864993,248.01,247.88,6.75]
[1757821685170,1.2,247.99,247.88,6.75]
[1757821685865,1.28827977,248.02,247.88,6.75]
[1757821686161,2.78549745,248.01,247.88,6.75]
[1757821686366,3.98549745,248.0,247.88,6.75]
[1757821686560,1.2,248.0,247.88,6.75]
[1757821691573,21.72,248.05,247.88,6.75]
[1757821691574,1.2,247.96,247.88,6.75]
[1757821691872,1.2,247.94,247.88,6.75]
[1757821692271,1.28827977,247.95,247.81,6.75]
[1757821692480,1.2,247.94,247.81,6.75]
[1757821696676,1.28827977,247.91,247.81,6.75]
[1757821696876,1.2,247.9,247.81,6.75]
[1757821701369,26.6,247.95,247.81,6.75]
[1757821701575,45.48827977,247.96,247.81,6.75]
[1757821702671,44.2,247.96,247.81,6.75]
[1757821703070,1.2,247.96,247.81,6.75]
[1757821704077,20.08827977,247.97,247.81,6.75]
[1757821704278,1.2,247.95,247.81,6.75]
[1757821704673,40.46,247.95,247.81,6.75]
[1757821704878,1.2,247.92,247.81,6.75]
[1757821705390,1.28827977,247.89,247.81,6.75]
[1757821705577,3.9793125,247.88,247.81,6.75]
[1757821705779,1.28827977,247.85,247.73,6.75]
[1757821706082,1.2,247.84,247.73,6.75]
[1757821706785,2.48827977,247.77,247.67,6.75]
[1757821708479,1.28827977,247.73,247.61,12.37128636]
[1757821708787,1.21,247.72,247.62,6.41]
[1757821710180,2.49827977,247.77,247.62,6.41]
[1757821712687,1.21,247.76,247.62,6.41]
[1757821713188,1.28827977,247.73,247.62,6.41]
[1757821713392,1.21,247.72,247.62,6.41]
[1757821715801,5.15,247.72,247.62,6.41]
[1757821722000,1.21,247.72,247.62,6.41]
[1757821722204,1.28827977,247.77,247.62,6.41]
[1757821722400,1.21,247.75,247.62,6.41]
[1757821724103,30.99,247.75,247.62,6.41]
[1757821726102,1.21,247.74,247.62,6.41]
[1757821728607,0.82588244,247.77,247.65,6.41]
[1757821730214,0.82588244,247.74,247.65,6.41]
[1757821730415,1.21,247.78,247.65,6.41]
[1757821730613,0.82588244,247.75,247.65,6.41]
[1757821735518,0.82588244,247.72,247.65,6.41]
[1757821740722,2.03588244,247.72,247.65,6.41]
[1757821741431,0.82588244,247.69,247.65,6.41]
[1757821741717,2.03588244,247.69,247.65,6.41]
[1757821742320,0.82588244,247.69,247.65,6.41]
[1757821742622,1.21,247.68,247.59,6.77]
[1757821743324,0.82588244,247.69,247.59,6.77]
[1757821743325,0.82588244,247.7,247.59,6.77]
[1757821744523,1.21,247.69,247.59,6.77]
[1757821746718,0.82588244,247.67,247.59,6.77]
[1757821753638,0.82588244,247.68,247.59,6.77]
[1757821755536,1.21,247.78,247.59,6.77]
[1757821755742,0.82588244,247.77,247.65,6.77]
[1757821756135,0.82588244,247.77,247.68,6.77]
[1757821759249,271.2,247.8,247.68,6.77]
[1757821759451,0.82588244,247.78,247.68,6.77]
[1757821760551,0.82588244,247.81,247.68,6.77]
[1757821760850,0.82588244,247.84,247.71,6.77]
[1757821761249,100.33,247.86,247.71,6.77]
[1757821761446,0.82588244,247.84,247.71,6.77]
[1757821761852,0.82588244,247.81,247.71,6.77]
[1757821763152,0.82588244,247.78,247.71,6.77]
[1757821764250,1.21,247.82,247.71,6.77]
[1757821764451,0.82588244,247.79,247.71,6.77]
[1757821765657,0.82588244,247.76,247.65,6.77]
[1757821775468,1.21,247.75,247.65,6.77]
[1757821777874,0.82588244,247.73,247.65,6.77]
[1757821778077,0.82588244,247.7,247.61,6.4]
[1757821779779,0.82588244,247.71,247.61,6.4]
[1757821783074,1.21,247.7,247.61,6.4]
[1757821785484,0.82588244,247.68,247.61,6.4]
[1757821788986,1.21,247.7,247.61,6.4]
[1757821795385,1.22,247.79,247.61,6.4]
[1757821795593,1.22,247.76,247.62,1.29058586]
[1757821795783,1.22,247.76,247.63,6.5]
[1757821797287,2.51058586,247.8,247.63,6.5]
[1757821797489,16.75058586,247.8,247.63,6.5]
[1757821797792,16.75058586,247.8,247.63,7.79058586]
[1757821798992,2.51058586,247.8,247.63,7.79058586]